[Event "12th National Amateur Chess-ch 2025"]
[Site "Bihar"]
[Date "2025.03.28"]
[Round "6.18"]
[White "Disha U A"]
[Black "Kashvy Sabharwal"]
[Result "1/2-1/2"]
[Annotator "NA RC"]
[ECO "C10"]
[WhiteElo "1643"]
[BlackElo "1640"]
[PlyCount "62"]
[EventDate "2025.03.25"]
[EventCountry "IND"]
[SourceTitle "playchess.com"]
[Source "ChessBase"]
[SourceQuality "1"]
[TimeControl "5400+30"]

1. e4 {[%emt 0:00:07]} e6 {[%emt 0:01:42]} 2. d4 {[%emt 0:00:06]} d5 {[%emt 0:00:15]} 3. Nc3 {[%emt 0:00:07]} Be7 {[%emt 0:00:12]} 4. Bd3 {[%emt 0:05:45]} c5 {[%emt 0:00:37]} 5. exd5 {[%emt 0:00:37]} exd5 {[%emt 0:00:09]} 6. dxc5 {[%emt 0:02:02]} Nf6 {[%emt 0:01:25]} 7. Nf3 {[%emt 0:01:22]} O-O {[%emt 0:01:03]} 8. O-O {[%emt 0:00:03]} Nbd7 {[%emt 0:07:31]} 9. Re1 {[%emt 0:09:40]} Nxc5 {[%emt 0:03:26]} 10. h3 {[%emt 0:00:55]} h6 {[%emt 0:03:00]} 11. Bf4 {[%emt 0:05:58]} Ne6 {[%emt 0:08:58]} 12. Bh2 {[%emt 0:01:46]} Bd7 {[%emt 0:03:40]} 13. Qd2 {[%emt 0:08:43]} Rc8 {[%emt 0:09:08]} 14. Ne2 {[%emt 0:03:18]} Qb6 {[%emt 0:06:14]} 15. Ned4 {[%emt 0:04:05]} Nxd4 {[%emt 0:16:20]} 16. Nxd4 {[%emt 0:00:08]} Bd6 {[%emt 0:01:08]} 17. Bxd6 {[%emt 0:00:30]} Qxd6 {[%emt 0:00:02]} 18. c3 {[%emt 0:00:13]} Rfe8 {[%emt 0:02:51]} 19. Rxe8+ {[%emt 0:13:57]} Rxe8 {[%emt 0:00:59]} 20. Re1 {[%emt 0:00:04]} Ne4 {[%emt 0:06:47]} 21. Bxe4 {[%emt 0:02:40]} dxe4 {[%emt 0:03:40]} 22. Nb3 {[%emt 0:08:18]} Qxd2 {[%emt 0:03:48]} 23. Nxd2 {[%emt 0:00:03]} f5 {[%emt 0:00:49]} 24. f3 {[%emt 0:00:36]} exf3 {[%emt 0:04:56]} 25. Rxe8+ {[%emt 0:00:10]} Bxe8 {[%emt 0:00:06]} 26. Nxf3 {[%emt 0:00:03]} Kf7 {[%emt 0:01:32]} 27. Kf2 {[%emt 0:00:06]} Kf6 {[%emt 0:01:00]} 28. Nd4 {[%emt 0:00:51]} Ke5 {[%emt 0:01:50]} 29. Ke3 {[%emt 0:02:00]} f4+ {[%emt 0:03:15]} 30. Kd3 {[%emt 0:01:41]} Bg6+ {[%emt 0:01:04]} 31. Kd2 {[%emt 0:00:14]} Be4 {[%emt 0:00:57]} 1/2-1/2

[Event "12th National Amateur Chess-ch 2025"]
[Site "Bihar"]
[Date "2025.03.28"]
[Round "6.19"]
[White "Tanisha Khandelwal"]
[Black "Maya Ameen"]
[Result "0-1"]
[Annotator "NA RC"]
[ECO "D02"]
[WhiteElo "1564"]
[BlackElo "1635"]
[PlyCount "98"]
[EventDate "2025.03.25"]
[EventCountry "IND"]
[SourceTitle "playchess.com"]
[Source "ChessBase"]
[SourceQuality "1"]
[TimeControl "5400+30"]

1. d4 {[%emt 0:00:30]} d5 {[%emt 0:00:30]} 2. Nf3 {[%emt 0:00:30]} Nf6 {[%emt 0:00:30]} 3. Bf4 {[%emt 0:00:30]} c5 {[%emt 0:00:30]} 4. e3 {[%emt 0:00:30]} Nc6 {[%emt 0:00:30]} 5. c3 {[%emt 0:00:30]} Qb6 {[%emt 0:00:30]} 6. Qb3 {[%emt 0:00:30]} c4 {[%emt 0:00:30]} 7. Qxb6 {[%emt 0:00:30]} axb6 {[%emt 0:00:30]} 8. Na3 {[%emt 0:00:30]} Bf5 {[%emt 0:00:30]} 9. Nh4 {[%emt 0:00:30]} Bg6 {[%emt 0:00:30]} 10. Nxg6 {[%emt 0:00:30]} hxg6 {[%emt 0:00:30]} 11. Be2 {[%emt 0:00:30]} e6 {[%emt 0:00:30]} 12. O-O {[%emt 0:00:30]} Bxa3 {[%emt 0:00:30]} 13. bxa3 {[%emt 0:00:30]} Rxa3 {[%emt 0:00:30]} 14. Rfb1 {[%emt 0:00:30]} Ne4 {[%emt 0:00:30]} 15. Bf3 {[%emt 0:00:30]} Nxc3 {[%emt 0:00:30]} 16. Rxb6 {[%emt 0:00:30]} Ra7 {[%emt 0:00:30]} 17. a3 {[%emt 0:00:30]} Kd7 {[%emt 0:00:30]} 18. h3 {[%emt 0:00:30]} Rha8 {[%emt 0:00:30]} 19. Rc1 {[%emt 0:00:30]} Na4 {[%emt 0:00:30]} 20. Rbb1 {[%emt 0:00:30]} Nd8 {[%emt 0:00:30]} 21. e4 {[%emt 0:00:30]} dxe4 {[%emt 0:00:30]} 22. Bxe4 {[%emt 0:00:30]} Rc8 {[%emt 0:00:30]} 23. Be3 {[%emt 0:00:30]} Ra6 {[%emt 0:00:30]} 24. Bxb7 {[%emt 0:00:30]} Nxb7 {[%emt 0:00:30]} 25. Rxb7+ {[%emt 0:00:30]} Ke8 {[%emt 0:00:30]} 26. Rb4 {[%emt 0:00:30]} c3 {[%emt 0:00:30]} 27. Rc2 {[%emt 0:00:30]} Nb6 {[%emt 0:00:30]} 28. Rb3 {[%emt 0:00:30]} Nd5 {[%emt 0:00:30]} 29. Kh2 {[%emt 0:00:30]} Ra4 {[%emt 0:00:30]} 30. Kg1 {[%emt 0:00:30]} Kd7 {[%emt 0:00:30]} 31. Kh2 {[%emt 0:00:30]} Kc6 {[%emt 0:00:30]} 32. Kg1 {[%emt 0:00:30]} Rc7 {[%emt 0:00:30]} 33. Kf1 {[%emt 0:00:30]} Rb7 {[%emt 0:00:30]} 34. Rxb7 {[%emt 0:00:30]} Kxb7 {[%emt 0:00:30]} 35. Ra2 {[%emt 0:00:30]} Kc6 {[%emt 0:00:30]} 36. g3 {[%emt 0:00:30]} Kb5 {[%emt 0:00:30]} 37. Ke2 {[%emt 0:00:30]} Kc4 {[%emt 0:00:30]} 38. Ra1 {[%emt 0:00:30]} c2 {[%emt 0:00:30]} 39. Rc1 {[%emt 0:00:30]} Kc3 {[%emt 0:00:30]} 40. Bd2+ {[%emt 0:00:30]} Kb2 {[%emt 0:00:30]} 41. Rf1 {[%emt 0:00:30]} Nc3+ {[%emt 0:00:30]} 42. Kd3 {[%emt 0:00:30]} Nd1 {[%emt 0:00:30]} 43. Ke2 {[%emt 0:00:30]} Rxd4 {[%emt 0:00:30]} 44. a4 {[%emt 0:00:30]} Rxa4 {[%emt 0:00:30]} 45. f3 {[%emt 0:00:30]} Ra1 {[%emt 0:00:30]} 46. g4 {[%emt 0:00:30]} Rb1 {[%emt 0:00:30]} 47. h4 {[%emt 0:00:30]} Nc3+ {[%emt 0:00:30]} 48. Bxc3+ {[%emt 0:00:30]} Kxc3 {[%emt 0:00:30]} 49. Rxb1 {[%emt 0:00:30]} cxb1=Q {[%emt 0:00:30]} 0-1

[Event "12th National Amateur Chess-ch 2025"]
[Site "Bihar"]
[Date "2025.03.28"]
[Round "6.20"]
[White "Harole Sara"]
[Black "Vidhi Angelina"]
[Result "1-0"]
[Annotator "NA RC"]
[ECO "B15"]
[WhiteElo "1509"]
[BlackElo "1620"]
[PlyCount "69"]
[EventDate "2025.03.25"]
[EventCountry "IND"]
[SourceTitle "playchess.com"]
[Source "ChessBase"]
[SourceQuality "1"]
[TimeControl "5400+30"]

1. e4 {[%emt 0:00:30]} c6 {[%emt 0:00:30]} 2. d4 {[%emt 0:00:30]} d5 {[%emt 0:00:30]} 3. Nc3 {[%emt 0:00:30]} dxe4 {[%emt 0:00:30]} 4. Nxe4 {[%emt 0:00:30]} Nf6 {[%emt 0:00:30]} 5. Nxf6+ {[%emt 0:00:30]} exf6 {[%emt 0:00:30]} 6. Nf3 {[%emt 0:00:30]} Bg4 {[%emt 0:00:30]} 7. Be2 {[%emt 0:00:30]} Bd6 {[%emt 0:00:30]} 8. O-O {[%emt 0:00:30]} O-O {[%emt 0:00:30]} 9. c3 {[%emt 0:00:30]} Re8 {[%emt 0:00:30]} 10. h3 {[%emt 0:00:30]} Bh5 {[%emt 0:00:30]} 11. Re1 {[%emt 0:00:30]} Bc7 {[%emt 0:00:30]} 12. Be3 {[%emt 0:00:30]} Qd6 {[%emt 0:00:30]} 13. g3 {[%emt 0:00:30]} Rxe3 {[%emt 0:00:30]} 14. g4 {[%emt 0:00:30]} Bxg4 {[%emt 0:00:30]} 15. hxg4 {[%emt 0:00:30]} Re4 {[%emt 0:00:30]} 16. Bd3 {[%emt 0:00:30]} Rxg4+ {[%emt 0:00:30]} 17. Kf1 {[%emt 0:00:30]} Nd7 {[%emt 0:00:30]} 18. Ne5 {[%emt 0:00:30]} Rh4 {[%emt 0:00:30]} 19. Nf3 {[%emt 0:00:30]} Rh1+ {[%emt 0:00:30]} 20. Kg2 {[%emt 0:00:30]} Rh6 {[%emt 0:00:30]} 21. Rh1 {[%emt 0:00:30]} Qf4 {[%emt 0:00:30]} 22. Rxh6 {[%emt 0:00:30]} Qxh6 {[%emt 0:00:30]} 23. Qb3 {[%emt 0:00:30]} Nb6 {[%emt 0:00:30]} 24. Rh1 {[%emt 0:00:30]} Qf4 {[%emt 0:00:30]} 25. Rh4 {[%emt 0:00:30]} Qd6 {[%emt 0:00:30]} 26. Bxh7+ {[%emt 0:00:30]} Kf8 {[%emt 0:00:30]} 27. Bc2 {[%emt 0:00:30]} Qe6 {[%emt 0:00:30]} 28. c4 {[%emt 0:00:30]} Rd8 {[%emt 0:00:30]} 29. Qa3+ {[%emt 0:00:30]} c5 {[%emt 0:00:30]} 30. d5 {[%emt 0:00:30]} Qe2 {[%emt 0:00:30]} 31. Bd3 {[%emt 0:00:30]} Qd1 {[%emt 0:00:30]} 32. Qxc5+ {[%emt 0:00:30]} Bd6 {[%emt 0:00:30]} 33. Qe3 {[%emt 0:00:30]} Kg8 {[%emt 0:00:30]} 34. Bh7+ {[%emt 0:00:30]} Kf8 {[%emt 0:00:30]} 35. Bc2 {[%emt 0:00:30]} 1-0

[Event "12th National Amateur Chess-ch 2025"]
[Site "Bihar"]
[Date "2025.03.28"]
[Round "7.1"]
[White "Ayaan Garg"]
[Black "Utkrisht Tuli"]
[Result "1/2-1/2"]
[Annotator "NA RC"]
[ECO "D31"]
[WhiteElo "1983"]
[BlackElo "2020"]
[PlyCount "79"]
[EventDate "2025.03.25"]
[EventCountry "IND"]
[SourceTitle "playchess.com"]
[Source "ChessBase"]
[SourceQuality "1"]
[TimeControl "5400+30"]

1. d4 {[%emt 0:00:30]} d5 {[%emt 0:02:00]} 2. c4 {[%emt 0:00:07]} e6 {[%emt 0:00:05]} 3. Nf3 {[%emt 0:00:04]} a6 {[%emt 0:00:05]} 4. cxd5 {[%emt 0:02:43]} exd5 {[%emt 0:00:07]} 5. Nc3 {[%emt 0:00:06]} c6 {[%emt 0:00:04]} 6. g3 {[%emt 0:00:25]} Nf6 {[%emt 0:00:38]} 7. Bg2 {[%emt 0:00:06]} Be7 {[%emt 0:00:21]} 8. O-O {[%emt 0:00:43]} O-O {[%emt 0:00:43]} 9. Bf4 {[%emt 0:06:36]} Re8 {[%emt 0:03:58]} 10. Rc1 {[%emt 0:00:50]} Bf5 {[%emt 0:04:38]} 11. Qb3 {[%emt 0:02:29]} Ra7 {[%emt 0:03:30]} 12. Ne5 {[%emt 0:07:08]} Be6 {[%emt 0:05:27]} 13. Rfd1 {[%emt 0:03:55]} Nbd7 {[%emt 0:04:58]} 14. Qc2 {[%emt 0:12:15]} Ra8 {[%emt 0:04:30]} 15. Nd3 {[%emt 0:09:27]} Bf5 {[%emt 0:03:45]} 16. Qb3 {[%emt 0:01:55]} Qb6 {[%emt 0:05:58]} 17. Qxb6 {[%emt 0:01:39]} Nxb6 {[%emt 0:00:05]} 18. Bc7 {[%emt 0:12:26]} Bd8 {[%emt 0:04:21]} 19. Bxb6 {[%emt 0:01:17]} Bxb6 {[%emt 0:00:04]} 20. e3 {[%emt 0:00:13]} Re7 {[%emt 0:09:25]} 21. b4 {[%emt 0:03:26]} Ne4 {[%emt 0:06:29]} 22. Nxe4 {[%emt 0:08:27]} Bxe4 {[%emt 0:00:21]} 23. Bxe4 {[%emt 0:01:58]} dxe4 {[%emt 0:01:28]} 24. Nc5 {[%emt 0:01:25]} Rd8 {[%emt 0:00:40]} 25. Rb1 {[%emt 0:02:27]} f5 {[%emt 0:00:50]} 26. a4 {[%emt 0:00:55]} Rd5 {[%emt 0:00:25]} 27. a5 {[%emt 0:01:31]} Ba7 {[%emt 0:01:02]} 28. Na4 {[%emt 0:00:41]} Kf7 {[%emt 0:00:13]} 29. Rbc1 {[%emt 0:00:49]} Rd8 {[%emt 0:01:23]} 30. h4 {[%emt 0:01:50]} g6 {[%emt 0:00:54]} 31. Kg2 {[%emt 0:00:52]} h6 {[%emt 0:00:56]} 32. Rh1 {[%emt 0:01:06]} Kf6 {[%emt 0:01:02]} 33. Nb2 {[%emt 0:01:11]} Rh7 {[%emt 0:00:59]} 34. Na4 {[%emt 0:00:24]} Rg7 {[%emt 0:03:51]} 35. Nb2 {[%emt 0:00:23]} g5 {[%emt 0:03:47]} 36. hxg5+ {[%emt 0:00:03]} hxg5 {[%emt 0:00:01]} 37. Rh6+ Kf7 38. Rch1 {[%emt 0:00:01]} f4 {[%emt 0:00:02]} 39. gxf4 gxf4+ 40. Kf1 1/2-1/2

[Event "12th National Amateur Chess-ch 2025"]
[Site "Bihar"]
[Date "2025.03.28"]
[Round "7.2"]
[White "Anadkat Kartavya"]
[Black "Sham R"]
[Result "1-0"]
[Annotator "RC"]
[ECO "C58"]
[WhiteElo "2175"]
[BlackElo "2128"]
[PlyCount "95"]
[EventDate "2025.03.25"]
[EventCountry "IND"]
[SourceTitle "playchess.com"]
[Source "ChessBase"]
[SourceQuality "1"]
[TimeControl "5400+30"]

1. e4 {[%emt 0:00:49]} e5 {[%emt 0:00:42]} 2. Nf3 {[%emt 0:00:00]} Nc6 {[%emt 0:00:01]} 3. Bc4 {[%emt 0:00:00]} Nf6 {[%emt 0:00:06]} 4. Ng5 {[%emt 0:00:09]} d5 {[%emt 0:00:03]} 5. exd5 {[%emt 0:00:07]} Na5 {[%emt 0:00:02]} 6. Bb5+ {[%emt 0:00:10]} c6 {[%emt 0:00:01]} 7. dxc6 {[%emt 0:00:07]} bxc6 {[%emt 0:00:03]} 8. Bd3 {[%emt 0:00:07]} Nd5 {[%emt 0:00:11]} 9. Nf3 {[%emt 0:00:04]} Bd6 {[%emt 0:00:03]} 10. O-O {[%emt 0:00:05]} Nf4 {[%emt 0:00:06]} 11. Re1 {[%emt 0:07:17]} Nxd3 {[%emt 0:02:48]} 12. cxd3 {[%emt 0:00:02]} O-O {[%emt 0:00:02]} 13. Nc3 {[%emt 0:03:56]} Re8 {[%emt 0:01:06]} 14. b3 {[%emt 0:03:54]} c5 {[%emt 0:04:36]} 15. Ne4 {[%emt 0:05:59]} Nc6 {[%emt 0:02:29]} 16. Ba3 {[%emt 0:08:46]} Nb4 {[%emt 0:00:08]} 17. Nxd6 {[%emt 0:08:45]} Qxd6 {[%emt 0:04:04]} 18. d4 {[%emt 0:01:52]} cxd4 {[%emt 0:10:44]} 19. Bxb4 {[%emt 0:02:59]} Qxb4 {[%emt 0:00:02]} 20. Nxe5 {[%emt 0:00:17]} Be6 {[%emt 0:00:29]} 21. Nd3 {[%emt 0:06:41]} Qb5 {[%emt 0:13:51]} 22. Qf3 {[%emt 0:04:57]} Bd5 {[%emt 0:00:56]} 23. Qg3 {[%emt 0:00:14]} Be4 {[%emt 0:00:38]} 24. Nf4 {[%emt 0:03:23]} a5 {[%emt 0:03:26]} 25. h4 {[%emt 0:03:01]} h6 {[%emt 0:06:10]} 26. Rac1 {[%emt 0:00:38]} Bf5 {[%emt 0:13:54]} 27. Nh5 {[%emt 0:02:41]} Bg6 {[%emt 0:00:35]} 28. Nf4 {[%emt 0:00:20]} Bf5 {[%emt 0:00:02]} 29. Kh2 {[%emt 0:02:43]} a4 {[%emt 0:26:09]} 30. bxa4 {[%emt 0:01:47]} Qxa4 {[%emt 0:00:17]} 31. Nh5 {[%emt 0:07:05]} Bg6 {[%emt 0:00:16]} 32. Nxg7 {[%emt 0:00:36]} Kxg7 {[%emt 0:01:26]} 33. h5 {[%emt 0:00:01]} Ra6 {[%emt 0:05:22]} 34. Rxe8 {[%emt 0:06:29]} Qxe8 {[%emt 0:00:03]} 35. hxg6 {[%emt 0:01:02]} Rxg6 {[%emt 0:00:02]} 36. Qf4 {[%emt 0:00:11]} Qd8 {[%emt 0:04:26]} 37. Rc5 {[%emt 0:07:18]} Rg5 {[%emt 0:02:23]} 38. Rf5 {[%emt 0:03:15]} f6 {[%emt 0:01:04]} 39. a4 {[%emt 0:02:43]} Rxf5 {[%emt 0:00:39]} 40. Qxf5 {[%emt 0:00:01]} Qc7+ {[%emt 0:00:29]} 41. g3 {[%emt 0:00:18]} Qc4 {[%emt 0:00:26]} 42. Qb5 {[%emt 0:02:18]} Qe6 {[%emt 0:00:38]} 43. a5 {[%emt 0:00:58]} Qa2 {[%emt 0:00:28]} 44. a6 {[%emt 0:01:09]} Qxd2 {[%emt 0:00:08]} 45. Qb7+ {[%emt 0:00:58]} Kg6 {[%emt 0:00:22]} 46. a7 {[%emt 0:00:50]} d3 {[%emt 0:00:41]} 47. a8=Q {[%emt 0:00:43]} Qxf2+ {[%emt 0:00:03]} 48. Qg2 {[%emt 0:00:06]} 1-0

[Event "12th National Amateur Chess-ch 2025"]
[Site "Bihar"]
[Date "2025.03.28"]
[Round "7.3"]
[White "Manav Kumar"]
[Black "Arhan Jain"]
[Result "1/2-1/2"]
[Annotator "RC"]
[ECO "A17"]
[WhiteElo "1777"]
[BlackElo "1914"]
[PlyCount "161"]
[EventDate "2025.03.25"]
[EventCountry "IND"]
[SourceTitle "playchess.com"]
[Source "ChessBase"]
[SourceQuality "1"]
[TimeControl "5400+30"]

1. Nf3 {[%emt 0:00:52]} d5 {[%emt 0:00:19]} 2. e3 {[%emt 0:00:05]} Nf6 {[%emt 0:00:15]} 3. c4 {[%emt 0:00:05]} e6 {[%emt 0:00:06]} 4. Nc3 {[%emt 0:00:02]} Be7 {[%emt 0:00:09]} 5. b3 {[%emt 0:00:03]} dxc4 {[%emt 0:00:19]} 6. bxc4 {[%emt 0:02:28]} c5 {[%emt 0:00:05]} 7. Be2 {[%emt 0:00:13]} O-O {[%emt 0:00:08]} 8. O-O {[%emt 0:00:04]} b6 {[%emt 0:00:37]} 9. d4 {[%emt 0:00:32]} cxd4 {[%emt 0:00:22]} 10. exd4 {[%emt 0:00:04]} Bb7 {[%emt 0:00:22]} 11. Qc2 {[%emt 0:01:53]} Nc6 {[%emt 0:00:53]} 12. Be3 {[%emt 0:00:13]} Rc8 {[%emt 0:00:59]} 13. Nb1 {[%emt 0:14:51]} Qc7 {[%emt 0:03:39]} 14. Nbd2 {[%emt 0:00:24]} Na5 {[%emt 0:00:35]} 15. Rac1 {[%emt 0:00:39]} Rfd8 {[%emt 0:03:35]} 16. h3 {[%emt 0:12:00]} Ba3 {[%emt 0:02:18]} 17. Rb1 {[%emt 0:04:03]} Bxf3 {[%emt 0:00:50]} 18. Bxf3 {[%emt 0:01:02]} Nxc4 {[%emt 0:00:56]} 19. Qb3 {[%emt 0:02:03]} Nxd2 {[%emt 0:01:11]} 20. Bxd2 {[%emt 0:00:09]} Be7 {[%emt 0:00:35]} 21. Rfc1 {[%emt 0:01:14]} Qd7 {[%emt 0:00:14]} 22. Be3 {[%emt 0:00:49]} Nd5 {[%emt 0:05:15]} 23. Rxc8 {[%emt 0:09:07]} Rxc8 {[%emt 0:00:06]} 24. Rc1 {[%emt 0:00:49]} Rxc1+ {[%emt 0:00:51]} 25. Bxc1 {[%emt 0:00:06]} h6 {[%emt 0:01:03]} 26. a4 {[%emt 0:02:25]} Bf6 {[%emt 0:02:18]} 27. Be3 {[%emt 0:00:42]} Qc6 {[%emt 0:02:01]} 28. Qb5 {[%emt 0:01:07]} Qxb5 {[%emt 0:01:29]} 29. axb5 {[%emt 0:00:02]} Nc3 {[%emt 0:03:20]} 30. Bc6 {[%emt 0:00:11]} Bxd4 {[%emt 0:00:28]} 31. Bd2 {[%emt 0:01:07]} Nd5 {[%emt 0:01:51]} 32. Kf1 {[%emt 0:00:18]} Nc7 {[%emt 0:02:22]} 33. Ke2 {[%emt 0:00:43]} a6 {[%emt 0:00:33]} 34. bxa6 {[%emt 0:00:05]} Nxa6 {[%emt 0:00:03]} 35. f4 {[%emt 0:01:18]} Bc5 {[%emt 0:00:56]} 36. Bc3 {[%emt 0:01:06]} Nc7 {[%emt 0:02:56]} 37. Be5 {[%emt 0:03:44]} Nd5 {[%emt 0:00:07]} 38. Bd7 {[%emt 0:02:02]} Kf8 {[%emt 0:01:42]} 39. f5 {[%emt 0:00:39]} exf5 {[%emt 0:00:08]} 40. Bxf5 {[%emt 0:00:18]} f6 {[%emt 0:01:08]} 41. Be4 {[%emt 0:02:17]} Ne7 {[%emt 0:00:25]} 42. Bb2 {[%emt 0:00:15]} Nc8 {[%emt 0:02:30]} 43. Kd3 {[%emt 0:01:33]} Nd6 {[%emt 0:00:10]} 44. Bd5 {[%emt 0:00:05]} Ke7 {[%emt 0:01:37]} 45. g4 {[%emt 0:00:08]} Ne8 {[%emt 0:01:18]} 46. Ke4 {[%emt 0:00:40]} Nd6+ {[%emt 0:01:39]} 47. Kd3 {[%emt 0:01:05]} b5 {[%emt 0:01:05]} 48. Bc1 {[%emt 0:02:38]} Kd7 {[%emt 0:05:15]} 49. Bf4 {[%emt 0:00:41]} Nc8 {[%emt 0:00:22]} 50. Ke4 {[%emt 0:01:37]} Ne7 {[%emt 0:00:08]} 51. Bb3 {[%emt 0:00:06]} Bd6 {[%emt 0:00:40]} 52. Bd2 {[%emt 0:00:12]} Kc6 {[%emt 0:01:10]} 53. Be3 {[%emt 0:01:06]} Be5 {[%emt 0:01:27]} 54. Bf7 {[%emt 0:04:19]} b4 {[%emt 0:02:29]} 55. Be8+ {[%emt 0:00:08]} Kd6 {[%emt 0:00:25]} 56. Bf7 {[%emt 0:00:09]} Nc6 {[%emt 0:02:47]} 57. Bb6 {[%emt 0:00:56]} Bc3 {[%emt 0:01:53]} 58. Bb3 {[%emt 0:01:53]} Bb2 {[%emt 0:04:41]} 59. Be3 {[%emt 0:01:46]} Na5 {[%emt 0:02:33]} 60. Bd5 {[%emt 0:00:06]} Bc3 {[%emt 0:01:50]} 61. Bb6 {[%emt 0:00:59]} b3 {[%emt 0:01:26]} 62. Bxa5 {[%emt 0:00:25]} b2 {[%emt 0:00:13]} 63. Ba2 {[%emt 0:00:02]} Bxa5 {[%emt 0:00:04]} 64. Kd4 {[%emt 0:05:45]} Bd2 {[%emt 0:01:14]} 65. Kd3 {[%emt 0:00:51]} Bc1 {[%emt 0:00:08]} 66. Kd4 {[%emt 0:00:03]} g6 {[%emt 0:00:52]} 67. Bb1 {[%emt 0:00:15]} g5 {[%emt 0:02:16]} 68. Ke4 {[%emt 0:00:23]} Bf4 {[%emt 0:00:31]} 69. h4 {[%emt 0:00:58]} Kc5 {[%emt 0:03:37]} 70. h5 {[%emt 0:00:29]} Be5 {[%emt 0:09:01]} 71. Kf5 {[%emt 0:00:57]} Kd4 {[%emt 0:00:10]} 72. Kg6 {[%emt 0:00:06]} Ke3 {[%emt 0:00:18]} 73. Kxh6 {[%emt 0:00:16]} Kf4 {[%emt 0:00:03]} 74. Bf5 {[%emt 0:00:54]} b1=Q {[%emt 0:01:00]} 75. Bxb1 {[%emt 0:00:02]} Kxg4 {[%emt 0:00:04]} 76. Kg6 {[%emt 0:00:15]} Kf4 {[%emt 0:03:04]} 77. h6 {[%emt 0:00:04]} g4 {[%emt 0:00:57]} 78. h7 {[%emt 0:00:01]} f5 {[%emt 0:00:07]} 79. Bxf5 {[%emt 0:00:03]} g3 {[%emt 0:00:04]} 80. Bh3 {[%emt 0:00:03]} Kf3 {[%emt 0:00:19]} 81. Kf7 {[%emt 0:00:14]} 1/2-1/2

[Event "12th National Amateur Chess-ch 2025"]
[Site "Bihar"]
[Date "2025.03.28"]
[Round "7.4"]
[White "Vidit Sethi"]
[Black "Shahan Vohra"]
[Result "1-0"]
[Annotator "NA RC"]
[ECO "E09"]
[WhiteElo "1832"]
[BlackElo "1649"]
[PlyCount "103"]
[EventDate "2025.03.25"]
[EventCountry "IND"]
[SourceTitle "playchess.com"]
[Source "ChessBase"]
[SourceQuality "1"]
[TimeControl "5400+30"]

1. d4 {[%emt 0:00:04]} d5 {[%emt 0:00:11]} 2. c4 {[%emt 0:00:04]} e6 {[%emt 0:00:09]} 3. Nf3 {[%emt 0:00:26]} Nf6 {[%emt 0:00:13]} 4. g3 {[%emt 0:00:05]} Be7 {[%emt 0:00:17]} 5. Bg2 {[%emt 0:00:04]} O-O {[%emt 0:00:06]} 6. Nbd2 {[%emt 0:00:27]} Nbd7 {[%emt 0:00:49]} 7. O-O {[%emt 0:00:17]} c6 {[%emt 0:00:28]} 8. Qc2 {[%emt 0:00:05]} b6 {[%emt 0:00:35]} 9. e4 {[%emt 0:00:07]} Bb7 {[%emt 0:02:51]} 10. e5 {[%emt 0:01:31]} Ne8 {[%emt 0:00:05]} 11. cxd5 {[%emt 0:00:24]} exd5 {[%emt 0:01:19]} 12. Rd1 {[%emt 0:04:59]} Nc7 {[%emt 0:01:39]} 13. Nf1 {[%emt 0:00:54]} c5 {[%emt 0:00:35]} 14. dxc5 {[%emt 0:00:15]} bxc5 {[%emt 0:00:22]} 15. b3 {[%emt 0:01:21]} Ne6 {[%emt 0:03:23]} 16. Bb2 {[%emt 0:04:47]} d4 {[%emt 0:00:57]} 17. Qe2 {[%emt 0:05:20]} Rc8 {[%emt 0:04:42]} 18. Rac1 {[%emt 0:02:37]} Qb6 {[%emt 0:04:52]} 19. N1d2 {[%emt 0:17:59]} Rce8 {[%emt 0:07:20]} 20. h4 {[%emt 0:02:57]} Kh8 {[%emt 0:04:38]} 21. Nc4 {[%emt 0:02:41]} Qa6 {[%emt 0:02:25]} 22. Qc2 {[%emt 0:00:52]} f5 {[%emt 0:00:53]} 23. exf6 {[%emt 0:08:37]} Bxf6 {[%emt 0:01:58]} 24. Qd3 {[%emt 0:00:58]} Nb6 {[%emt 0:12:34]} 25. Nd6 {[%emt 0:03:10]} Qxd3 {[%emt 0:09:49]} 26. Rxd3 {[%emt 0:00:21]} Ba6 {[%emt 0:00:04]} 27. Nxe8 {[%emt 0:00:17]} Bxd3 {[%emt 0:00:06]} 28. Nxf6 {[%emt 0:00:09]} Rxf6 {[%emt 0:01:14]} 29. Ne5 {[%emt 0:01:51]} Ba6 {[%emt 0:01:05]} 30. a4 {[%emt 0:00:21]} Bc8 {[%emt 0:04:32]} 31. a5 {[%emt 0:00:59]} Nd7 {[%emt 0:00:05]} 32. Nc6 {[%emt 0:00:07]} a6 {[%emt 0:02:32]} 33. Ne7 {[%emt 0:00:18]} Rf8 {[%emt 0:00:11]} 34. Bh3 {[%emt 0:00:37]} Bb7 {[%emt 0:05:59]} 35. Bxe6 {[%emt 0:00:36]} Ne5 {[%emt 0:00:10]} 36. Bd5 {[%emt 0:00:20]} Nd3 {[%emt 0:00:52]} 37. Bxb7 {[%emt 0:00:32]} Nxc1 {[%emt 0:00:18]} 38. Bxc1 {[%emt 0:00:07]} Re8 {[%emt 0:00:04]} 39. Bxa6 {[%emt 0:00:18]} Rxe7 {[%emt 0:00:04]} 40. Bd2 {[%emt 0:00:08]} d3 {[%emt 0:00:49]} 41. Kf1 {[%emt 0:01:20]} Rd7 {[%emt 0:00:16]} 42. Bc4 {[%emt 0:00:08]} h5 {[%emt 0:00:20]} 43. Ke1 {[%emt 0:00:19]} Kh7 {[%emt 0:00:11]} 44. Be3 {[%emt 0:00:25]} Kg6 {[%emt 0:00:31]} 45. Kd2 {[%emt 0:00:13]} Kf5 {[%emt 0:00:14]} 46. Bxc5 {[%emt 0:00:26]} Ke5 {[%emt 0:00:18]} 47. a6 {[%emt 0:00:10]} Rd8 {[%emt 0:00:09]} 48. a7 {[%emt 0:00:20]} g6 {[%emt 0:00:07]} 49. b4 {[%emt 0:00:20]} Ra8 {[%emt 0:00:09]} 50. b5 {[%emt 0:00:17]} Rd8 {[%emt 0:00:08]} 51. b6 {[%emt 0:00:05]} Ra8 {[%emt 0:00:03]} 52. b7 {[%emt 0:00:08]} 1-0

[Event "12th National Amateur Chess-ch 2025"]
[Site "Bihar"]
[Date "2025.03.28"]
[Round "7.5"]
[White "Pradeep Tiwari"]
[Black "Archisman Patra"]
[Result "1/2-1/2"]
[Annotator "NA RC"]
[ECO "D46"]
[WhiteElo "1979"]
[BlackElo "1791"]
[PlyCount "63"]
[EventDate "2025.03.25"]
[EventCountry "IND"]
[SourceTitle "playchess.com"]
[Source "ChessBase"]
[SourceQuality "1"]
[TimeControl "5400+30"]

1. d4 {[%emt 0:00:07]} d5 {[%emt 0:00:50]} 2. Nf3 {[%emt 0:00:06]} Nf6 {[%emt 0:00:06]} 3. c4 {[%emt 0:00:07]} c6 {[%emt 0:00:05]} 4. e3 {[%emt 0:01:15]} e6 {[%emt 0:01:03]} 5. Nc3 {[%emt 0:00:17]} Nbd7 {[%emt 0:00:27]} 6. Bd3 {[%emt 0:00:16]} Bd6 {[%emt 0:00:13]} 7. O-O {[%emt 0:00:12]} O-O {[%emt 0:00:11]} 8. e4 {[%emt 0:00:46]} dxe4 {[%emt 0:02:48]} 9. Nxe4 {[%emt 0:00:05]} Nxe4 {[%emt 0:04:09]} 10. Bxe4 {[%emt 0:00:40]} Nf6 {[%emt 0:02:14]} 11. Bc2 {[%emt 0:00:23]} h6 {[%emt 0:02:05]} 12. Qe2 {[%emt 0:01:45]} b6 {[%emt 0:00:28]} 13. Rd1 {[%emt 0:00:23]} Bb7 {[%emt 0:00:25]} 14. c5 {[%emt 0:00:20]} Bc7 {[%emt 0:01:34]} 15. Ne5 {[%emt 0:00:59]} Qe7 {[%emt 0:02:07]} 16. b3 {[%emt 0:15:59]} bxc5 {[%emt 0:02:42]} 17. dxc5 {[%emt 0:00:40]} Qxc5 {[%emt 0:00:57]} 18. Bb2 {[%emt 0:01:36]} Rfd8 {[%emt 0:04:16]} 19. Rxd8+ {[%emt 0:00:47]} Rxd8 {[%emt 0:01:25]} 20. Rc1 {[%emt 0:00:11]} Qe7 {[%emt 0:02:53]} 21. Qf3 {[%emt 0:01:00]} Rd5 {[%emt 0:10:55]} 22. Nc4 {[%emt 0:02:53]} Rd8 {[%emt 0:05:32]} 23. g3 {[%emt 0:01:23]} Ba8 {[%emt 0:00:47]} 24. Bxf6 {[%emt 0:01:20]} Qxf6 {[%emt 0:02:30]} 25. Qxf6 {[%emt 0:01:06]} gxf6 {[%emt 0:00:02]} 26. Be4 {[%emt 0:00:11]} f5 {[%emt 0:01:02]} 27. Bf3 {[%emt 0:00:15]} Kg7 {[%emt 0:03:34]} 28. Ne3 {[%emt 0:00:53]} Bb6 {[%emt 0:00:43]} 29. Nc4 {[%emt 0:00:26]} Bc7 {[%emt 0:00:41]} 30. Ne3 {[%emt 0:00:32]} Bb6 {[%emt 0:00:08]} 31. Nc4 {[%emt 0:00:13]} Bc7 {[%emt 0:03:06]} 32. Ne3 {[%emt 0:00:32]} 1/2-1/2